bitfinex-derivatives/quotes_SOLF0:USTF0_20260215
["timestamp","ask_amount","ask_price","bid_price","bid_amount"]
[1771177019185,3.09769474,87.367,87.317,3.75976299]
[1771177020289,3.09768773,87.349,87.305,10.3152]
[1771177020786,3.09768773,87.349,87.305,14.07496299]
[1771177021090,3.09768773,87.349,87.306,3.75976299]
[1771177023088,3.3669016,87.35,87.309,3.75976299]
[1771177023290,3.3669016,87.36,87.311,3.75976299]
[1771177024792,3.3669016,87.36,87.313,3.75976299]
[1771177028793,3.08757881,87.38,87.331,3.75976299]
[1771177029184,3.08757881,87.38,87.341,3.75976299]
[1771177029584,3.3669016,87.39,87.341,3.75976299]
[1771177029896,10.306,87.385,87.341,3.75976299]
[1771177031797,10.3064,87.381,87.341,3.75976299]
[1771177033291,3.3669016,87.37,87.331,10.3122]
[1771177033496,3.09628998,87.369,87.331,10.3122]
[1771177034195,3.09628353,87.383,87.333,3.68056183]
[1771177034800,3.09628353,87.383,87.341,3.68056183]
[1771177035800,3.09628353,87.383,87.342,13.99146183]
[1771177036302,3.09628353,87.383,87.343,3.68056183]
[1771177037205,3.3669016,87.38,87.343,3.68056183]
[1771177037900,3.09628353,87.383,87.346,10.3104]
[1771177038202,3.09628353,87.383,87.346,13.99096183]
[1771177039705,3.06441096,87.379,87.346,10.3104]
[1771177040102,3.06441096,87.369,87.294,3.68056183]
[1771177040306,3.06441096,87.359,87.311,3.68056183]
[1771177041402,3.06441096,87.359,87.313,10.3144]
[1771177042008,3.06441096,87.359,87.313,13.99496183]
[1771177043407,3.06441096,87.359,87.314,3.68056183]
[1771177043610,3.06441096,87.359,87.316,10.3139]
[1771177045315,3.3554452,87.37,87.324,3.68056183]
[1771177046613,3.3554452,87.37,87.325,10.3129]
[1771177050414,6.55194745,87.37,87.325,10.3129]
[1771177050713,3.1987228,87.369,87.325,10.3129]
[1771177050916,3.1987175,87.359,87.316,10.314]
[1771177056620,3.1987175,87.359,87.316,13.99456183]
[1771177058416,3.1987175,87.359,87.318,10.3137]
[1771177061122,3.1987175,87.359,87.318,13.99426183]
[1771177062422,3.1987175,87.359,87.321,3.68056183]
[1771177070324,3.22321675,87.369,87.328,3.84109449]
[1771177071725,3.22321675,87.369,87.33,10.3124]
[1771177071925,3.22321675,87.369,87.331,3.84109449]
[1771177072228,6.64276463,87.38,87.331,3.84109449]
[1771177072425,3.28918778,87.379,87.331,3.84109449]
[1771177073430,3.28918778,87.379,87.333,3.84109449]
[1771177074730,3.28918778,87.379,87.339,14.15239449]
[1771177076637,3.28918778,87.379,87.342,3.84109449]
[1771177081836,3.2560492,87.369,87.33,3.84109449]
[1771177082034,3.2560492,87.359,87.32,3.84109449]
[1771177082237,3.2560492,87.359,87.308,3.84109449]
[1771177082535,3.25056944,87.385,87.341,3.84109449]
[1771177083137,3.25056944,87.385,87.286,28.50467855]
[1771177083138,3.25056586,87.396,87.351,3.84109449]
[1771177084740,3.25056586,87.396,87.352,14.15079449]
[1771177086048,3.25056586,87.396,87.353,3.84109449]
[1771177086242,3.3554452,87.4,87.35,3.3554452]
[1771177086243,3.3554452,87.4,87.359,3.84109449]
[1771177086548,3.32026949,87.407,87.359,3.84109449]
[1771177087739,3.32026949,87.407,87.36,14.14989449]
[1771177087940,3.32026949,87.407,87.35,3.3554452]
[1771177087941,3.3554452,87.39,87.35,3.84109449]
[1771177088145,6.64917268,87.38,87.339,3.84109449]
[1771177088853,3.26107274,87.379,87.339,3.84109449]
[1771177092349,3.26107274,87.379,87.341,3.84109449]
[1771177092847,3.21728754,87.389,87.341,3.84109449]
[1771177093050,3.21728754,87.387,87.344,3.84109449]
[1771177095652,3.21728754,87.387,87.35,3.3554452]
[1771177096350,3.21602733,87.385,87.344,3.84109449]
[1771177105849,3.21602733,87.385,87.346,10.3105]
[1771177106263,3.21602733,87.385,87.344,3.84109449]
[1771177111155,3.21602733,87.385,87.35,3.89375255]
[1771177124667,3.21602733,87.385,87.355,3.55738032]
[1771177125964,3.24972071,87.395,87.357,10.3091]
[1771177126169,3.24972071,87.405,87.361,3.55738032]
[1771177126370,10.3032,87.408,87.361,3.55738032]
[1771177127860,13.55673887,87.408,87.362,3.55738032]
[1771177128269,3.25353887,87.407,87.362,3.55738032]
[1771177129165,3.2718405,87.405,87.362,3.55738032]
[1771177129374,3.27184063,87.399,87.362,3.55738032]
[1771177142480,14.01164243,87.42,87.37,3.35502872]
[1771177142680,3.29824875,87.426,87.381,3.55738032]
[1771177142883,3.29824702,87.437,87.392,3.55738032]
[1771177143681,176.171146,87.443,87.403,3.55738032]
[1771177144286,176.171146,87.443,87.407,3.55738032]
[1771177145177,206.82,87.453,87.407,3.55738032]
[1771177145782,210.07761291,87.453,87.411,3.55738032]
[1771177150301,3.25761291,87.453,87.411,3.55738032]
[1771177151195,3.25761291,87.453,87.413,3.55738032]
[1771177152695,3.28260075,87.449,87.403,10.3037]
[1771177152895,254.26,87.471,87.391,3.55738032]
[1771177152896,3.28260075,87.439,87.391,3.55738032]
[1771177153395,3.35502872,87.43,87.391,3.55738032]
[1771177153600,3.28260075,87.439,87.391,3.55738032]
[1771177153800,3.28260075,87.439,87.394,3.7330683]
[1771177154798,3.28260075,87.439,87.396,14.0376683]
[1771177155297,3.28260075,87.439,87.385,3.7330683]
[1771177155498,1.99078974,87.481,87.368,3.7330683]
[1771177155499,3.35502872,87.4,87.368,3.7330683]
[1771177155706,3.22014449,87.399,87.351,3.7330683]
[1771177156801,3.22014449,87.399,87.362,10.3086]
[1771177157808,3.10383199,87.389,87.341,3.7330683]
[1771177158801,3.10383199,87.389,87.344,3.7330683]
[1771177159802,3.10383199,87.389,87.347,10.3104]
[1771177160305,3.10383199,87.389,87.347,14.0434683]
[1771177161007,3.10383199,87.389,87.348,3.7330683]
[1771177161200,3.35488011,87.39,87.318,91.3]
[1771177161201,3.35488011,87.41,87.361,3.7330683]
[1771177161407,2.96076746,87.409,87.361,3.7330683]
[1771177162720,2.96076746,87.409,87.364,3.7330683]
[1771177163801,2.96076746,87.409,87.366,3.7330683]
[1771177167515,3.03992874,87.419,87.366,3.7330683]
[1771177168026,3.35488011,87.41,87.366,3.7330683]
[1771177168717,3.35488011,87.41,87.369,3.7330683]
[1771177169015,6.39661035,87.41,87.369,3.7330683]
[1771177170213,3.0417291,87.409,87.369,3.7330683]
[1771177174626,3.0417291,87.409,87.368,10.3078]
[1771177175729,3.0417291,87.409,87.378,10.3067]
[1771177179622,3.01125083,87.419,87.379,3.7330683]
[1771177187431,10.3009,87.428,87.381,3.63495039]
[1771177187827,13.30673472,87.428,87.381,3.63495039]
[1771177188031,3.00583472,87.427,87.381,3.63495039]
[1771177189134,3.05026188,87.409,87.37,10.3076]
[1771177189331,3.05026188,87.409,87.37,3.63495039]
[1771177190833,10.3034,87.407,87.37,3.63495039]
[1771177191036,3.0463373,87.406,87.37,3.63495039]
[1771177192431,292.38,87.414,87.37,3.63495039]
[1771177193230,3.00702631,87.399,87.358,10.3091]
[1771177193430,10.65661371,87.446,87.353,3.63495039]
[1771177193431,3.0070264,87.389,87.353,3.63495039]
[1771177193637,3.0070264,87.379,87.341,3.63495039]
[1771177200344,3.35488011,87.37,87.33,3.63495039]
[1771177201740,10.3055,87.388,87.332,3.63495039]
[1771177202043,2.92788567,87.403,87.33,3.35488011]
[1771177202044,2.92788567,87.403,87.361,3.63495039]
[1771177202546,3.35488011,87.41,87.361,3.63495039]
[1771177202748,10.3035,87.406,87.361,3.63495039]
[1771177204150,2.97591547,87.426,87.371,3.63495039]
[1771177204844,3.35488011,87.41,87.371,3.63495039]
[1771177205051,3.35488011,87.39,87.359,3.63495039]
[1771177205252,3.35488011,87.37,87.32,3.35488011]
[1771177205455,3.35488011,87.37,87.327,3.63495039]
[1771177205657,3.11324576,87.401,87.333,3.63495039]
[1771177205957,3.35488011,87.41,87.361,3.63495039]
[1771177206755,3.01913361,87.406,87.361,3.63495039]
[1771177207255,3.35488011,87.43,87.381,3.63495039]
[1771177207450,3.35488011,87.44,87.391,3.63495039]
[1771177207657,3.01913369,87.447,87.401,3.63495039]
[1771177207857,3.35488011,87.43,87.381,3.63495039]
[1771177208758,3.35488011,87.43,87.391,10.3051]
[1771177209665,3.35488011,87.43,87.391,13.94005039]
[1771177209858,34.34,87.478,87.358,14.2477439]
[1771177209859,3.31724495,87.478,87.421,3.63495039]
[1771177210059,3.35488011,87.47,87.43,3.35488011]
[1771177210259,3.31724495,87.478,87.43,3.35488011]
[1771177210455,3.31724495,87.478,87.421,3.63495039]
[1771177210860,3.35488011,87.47,87.421,3.63495039]
[1771177212569,6.73368648,87.47,87.421,3.63495039]
[1771177212962,6.73368574,87.46,87.421,3.63495039]
[1771177216658,3.31172735,87.459,87.421,3.63495039]
[1771177217170,6.66660746,87.43,87.381,3.8437115]
[1771177220767,3.29578443,87.429,87.381,3.8437115]
[1771177220967,3.35488011,87.42,87.381,3.8437115]
[1771177221163,3.35488011,87.41,87.368,3.8437115]
[1771177221369,6.65066454,87.41,87.368,3.8437115]
[1771177221869,6.64935648,87.41,87.368,3.8437115]
[1771177222069,20.5939,87.462,87.371,3.8437115]
[1771177222070,3.35357205,87.42,87.371,3.8437115]
[1771177223469,10.3012,87.425,87.371,3.8437115]
[1771177223772,3.29343626,87.419,87.371,3.8437115]
[1771177223972,3.35357205,87.41,87.371,3.8437115]
[1771177224368,6.64700831,87.41,87.371,3.8437115]
[1771177225568,3.35357205,87.39,87.34,3.35357205]
[1771177225774,3.35357205,87.39,87.343,3.89422126]
[1771177226477,3.35357205,87.39,87.308,14.2477439]
[1771177226478,3.35096129,87.388,87.327,3.89422126]
[1771177226782,3.35096129,87.339,87.276,3.89422126]
[1771177226968,3.35357205,87.31,87.276,3.89422126]
[1771177227974,3.35096067,87.323,87.276,3.89422126]
[1771177228577,10.3123,87.332,87.276,3.89422126]
[1771177228975,3.21393938,87.329,87.276,3.89422126]
[1771177231074,3.27168949,87.345,87.279,3.89422126]
[1771177232876,3.27168949,87.345,87.281,3.89422126]
[1771177233477,10.3098,87.352,87.283,3.89422126]
[1771177233682,3.28754161,87.359,87.291,3.89422126]
[1771177234881,3.28754161,87.359,87.301,3.89422126]
[1771177235176,13.60096394,87.358,87.301,3.89422126]
[1771177235382,3.29186394,87.357,87.301,3.89422126]
[1771177235674,3.29186397,87.353,87.287,3.89422126]
[1771177236376,3.29599324,87.351,87.289,3.89422126]
[1771177236876,3.29599324,87.351,87.292,10.3168]
[1771177237177,10.3085,87.364,87.293,3.89422126]
[1771177237377,3.29599272,87.363,87.293,3.89422126]
[1771177237779,3.29599272,87.359,87.299,3.89422126]
[1771177238778,10.3099,87.352,87.299,3.89422126]
[1771177240181,3.29599272,87.359,87.299,3.89422126]
[1771177241780,3.29599272,87.359,87.304,3.89422126]
[1771177242784,3.29599272,87.359,87.306,14.20942126]
[1771177243086,3.36979528,87.357,87.292,3.89422126]
[1771177244987,3.36411433,87.354,87.296,10.3163]
[1771177245183,3.36411433,87.349,87.276,3.79356068]
[1771177245380,3.36411436,87.349,87.276,3.79356068]
[1771177246184,3.36411387,87.345,87.287,3.79356068]
[1771177247782,10.3108,87.344,87.289,3.79356068]
[1771177248179,7.8108,87.344,87.289,3.79356068]
[1771177248486,11.17467108,87.344,87.289,3.79356068]
[1771177249188,3.36387061,87.343,87.289,3.79356068]
[1771177249487,3.36387061,87.337,87.289,3.79356068]
[1771177250284,10.3117,87.336,87.289,3.79356068]
[1771177252984,3.37058288,87.335,87.289,3.79356068]
[1771177253178,3.35937939,87.34,87.289,3.79356068]
[1771177253179,3.37058288,87.332,87.289,3.79356068]
[1771177253682,3.35937939,87.34,87.291,3.79356068]
[1771177253888,10.3108,87.344,87.291,3.79356068]
[1771177254784,3.37001343,87.343,87.291,3.79356068]
[1771177255488,3.37001302,87.341,87.293,10.3167]
[1771177255787,3.37001302,87.339,87.291,3.79356068]
[1771177256387,3.35937939,87.34,87.291,3.79356068]
[1771177256388,3.38318798,87.338,87.291,3.79356068]
[1771177257986,10.312,87.334,87.291,3.79356068]
[1771177260591,3.37935101,87.324,87.276,3.79356068]
[1771177260783,160.3157,87.385,87.276,3.79356068]
[1771177260784,3.37935101,87.319,87.276,3.79356068]
[1771177261789,10.3139,87.318,87.276,3.79356068]
[1771177262286,3.37935021,87.317,87.276,3.79356068]
[1771177262997,10.3141,87.316,87.276,3.79356068]
[1771177263295,3.37474108,87.309,87.263,3.79356068]
[1771177264693,10.3151,87.308,87.263,3.79356068]
[1771177264896,3.35937939,87.31,87.263,3.79356068]
[1771177265400,3.35937939,87.31,87.267,3.79356068]
[1771177267500,13.67417939,87.31,87.267,3.79356068]
[1771177271104,3.45804285,87.299,87.258,10.3208]
[1771177271712,3.45804285,87.299,87.258,14.11436068]
[1771177272909,3.45677326,87.289,87.246,10.3223]
[1771177275812,3.45677326,87.289,87.253,10.3215]
[1771177279309,3.48659483,87.288,87.246,3.60495308]
[1771177279706,3.48659484,87.286,87.246,3.60495308]
[1771177279907,3.35937939,87.28,87.246,3.60495308]
[1771177280804,3.35937939,87.27,87.223,10.325]
[1771177281013,3.35937939,87.27,87.224,3.60495308]
[1771177281014,3.48716157,87.269,87.224,3.60495308]
[1771177282816,10.3198,87.267,87.224,3.60495308]
[1771177288121,3.48716157,87.269,87.226,3.60495308]
[1771177288309,3.48716157,87.269,87.187,20.6585]
[1771177288310,3.49439344,87.295,87.241,3.60495308]
[1771177288514,3.49439344,87.295,87.25,6.96903608]
[1771177289015,3.49439344,87.295,87.216,91.4]
[1771177289016,6.79860629,87.31,87.26,3.364083]
[1771177289212,3.43452329,87.31,87.27,6.96903608]
[1771177289914,3.43452329,87.31,87.27,3.60495308]
[1771177294817,3.364083,87.32,87.27,3.60495308]
[1771177294818,3.364083,87.32,87.274,3.60495308]
[1771177295019,3.37925383,87.322,87.281,3.60495308]
[1771177295519,13.69115385,87.335,87.284,3.60495308]
[1771177295718,3.37925385,87.334,87.284,3.60495308]
[1771177296717,3.37925385,87.334,87.285,13.92265308]
[1771177297014,3.37925385,87.334,87.286,3.60495308]
[1771177301520,3.37588538,87.347,87.301,3.60495308]
[1771177302124,3.37588538,87.347,87.305,10.3153]
[1771177302325,3.37588538,87.347,87.306,3.60495308]
[1771177303824,6.73338301,87.32,87.277,3.754838]
[1771177304026,3.36930001,87.319,87.264,3.754838]
[1771177304821,3.36930001,87.319,87.269,10.3196]
[1771177306227,91.4,87.33,87.236,91.4]
[1771177306228,3.39232607,87.328,87.28,7.118921]
[1771177307431,3.23757688,87.319,87.265,3.754838]
[1771177307635,3.23757688,87.309,87.265,3.754838]
[1771177308738,3.23757688,87.309,87.266,10.32]
[1771177310630,3.23757688,87.309,87.273,10.3191]
[1771177310830,3.29399865,87.322,87.274,3.754838]
[1771177311827,3.29399865,87.322,87.276,3.754838]
[1771177314336,3.30896467,87.289,87.208,8.826e-05]
[1771177314537,320.7744,87.346,87.203,12.96884824]
[1771177314538,3.364083,87.24,87.203,12.96884824]
[1771177315131,3.364083,87.23,87.203,12.96884824]
[1771177315332,3.364083,87.23,87.181,12.96884824]
[1771177315737,43.75687061,87.248,87.181,12.96884824]
[1771177315738,3.364083,87.22,87.181,12.96884824]
[1771177316235,9.41687061,87.248,87.191,12.96884824]
[1771177316432,3.364083,87.25,87.191,12.96884824]
[1771177317337,9.41687061,87.261,87.191,12.96884824]
[1771177317545,3.364083,87.24,87.191,12.96884824]
[1771177317737,13.685783,87.25,87.193,13.18568558]
[1771177318446,3.364083,87.24,87.193,13.18568558]
[1771177318834,17.72616149,87.259,87.197,10.327]
[1771177319037,3.364083,87.27,87.211,12.80048749]
[1771177320139,3.364083,87.27,87.173,91.4]
[1771177320140,3.364083,87.27,87.221,12.80048749]
[1771177320339,3.364083,87.28,87.231,12.80048749]
[1771177320948,3.364083,87.26,87.216,12.80197875]
[1771177321344,3.364083,87.27,87.216,12.80197875]
[1771177321946,10.3177,87.277,87.216,12.80197875]
[1771177322746,10.3177,87.277,87.217,10.3247]
[1771177322943,10.3177,87.277,87.218,12.82829777]
[1771177323546,19.3284277,87.29,87.23,12.82829777]
[1771177323846,154.9122277,87.31,87.23,12.82829777]
[1771177324045,18.48391344,87.309,87.23,12.82829777]
[1771177324239,9.0122277,87.31,87.23,12.82829777]
[1771177324240,27.49614114,87.31,87.23,12.82829777]
[1771177324444,9.0122277,87.29,87.204,12.8335535]
[1771177325855,10.3172,87.281,87.218,12.8335535]
[1771177326148,9.0122277,87.29,87.218,12.8335535]
[1771177327345,10.3182,87.272,87.218,12.8335535]
[1771177329050,9.39713469,87.282,87.203,12.89034933]
[1771177329349,9.0122277,87.25,87.188,12.89034933]
[1771177330849,9.0122277,87.25,87.19,12.90374714]
[1771177332552,10.3214,87.245,87.19,12.90374714]
[1771177332746,9.0122277,87.25,87.19,12.90374714]
[1771177334449,10.3211,87.248,87.19,12.90374714]
[1771177338064,10.3237,87.226,87.174,12.92098373]
[1771177339361,10.3245,87.219,87.174,12.92098373]
[1771177341461,9.0122277,87.23,87.131,12.92381805]
[1771177341761,9.56462879,87.229,87.083,12.92381805]
[1771177341959,136.11994982,87.237,87.039,385.34621285]
[1771177341960,10.33,87.173,87.046,10.345]
[1771177342158,9.0122277,87.14,87.065,12.92381805]
[1771177342458,443.17546805,87.174,87.065,12.92381805]
[1771177342459,9.02472266,87.171,87.065,12.92381805]
[1771177342661,9.0122277,87.15,87.065,12.92381805]
[1771177342864,18.57465175,87.173,87.065,12.92381805]
[1771177343059,443.17546805,87.174,87.081,12.93790076]
[1771177343461,9.0122277,87.16,87.081,12.93790076]
[1771177343658,18.55332137,87.173,87.081,12.93790076]
[1771177343864,10.332,87.156,87.081,12.93790076]
[1771177344265,9.03856375,87.12,87.039,12.93790076]
[1771177344560,10.3369,87.115,86.991,12.71031108]
[1771177344761,9.03856375,87.11,87.011,12.71031108]
[1771177344962,10.336,87.122,87.021,12.71031108]
[1771177345363,91.4,87.13,87.041,12.71031108]
[1771177346469,9.03856375,87.12,87.041,12.71031108]
[1771177346668,91.4,87.119,87.041,12.71031108]
[1771177346864,10.3382,87.103,87.041,12.71031108]
[1771177347066,183.98,87.111,87.041,12.71031108]
[1771177347261,9.03856375,87.13,87.041,12.71031108]
[1771177347462,178.02,87.113,87.041,12.71031108]
[1771177347667,9.03856375,87.11,87.041,12.71031108]
[1771177348471,9.03856375,87.09,87.011,12.70531292]
[1771177348768,9.03856375,87.07,87.011,12.70531292]
[1771177348962,9.03856375,87.06,86.981,12.70531292]
[1771177349163,9.03856375,87.04,86.981,12.70531292]
[1771177349373,91.42,87.039,86.951,12.70531292]
[1771177349570,91.4,87.038,86.951,12.70531292]
[1771177349771,91.4,87.038,86.952,10.3561]
[1771177349971,92.1,87.037,86.953,12.70531293]
[1771177350170,9.03856375,87.04,86.953,12.70531293]
[1771177350373,10.3438,87.057,86.971,12.70531293]
[1771177350571,91.42,87.056,86.971,12.70531293]
[1771177350783,92.14,87.055,86.991,12.7076721]
[1771177350972,10.3419,87.073,86.991,12.7076721]
[1771177351175,107.54,87.079,86.914,161.1656]
[1771177351369,9.03856375,87.07,86.972,12.7076721]
[1771177351563,9.03856375,87.07,86.94,9.03856375]
[1771177351564,160.752,87.139,86.991,12.7076721]
[1771177351868,9.03856375,87.08,86.991,12.7076721]
[1771177352172,10.3422,87.07,86.991,12.7076721]
[1771177352974,10.3438,87.056,86.991,12.7076721]
[1771177353379,10.3457,87.04,86.991,12.7076721]
[1771177354576,120.0,87.059,86.991,12.7076721]
[1771177354877,120.0,87.059,86.971,12.59667871]
[1771177355076,9.03856375,87.04,86.971,12.59667871]
[1771177355280,160.8517,87.085,86.971,12.59667871]
[1771177355573,9.03856375,87.07,86.971,12.59667871]
[1771177355876,9.03856375,87.09,86.991,12.59667871]
[1771177356076,219.14,87.089,86.991,12.59667871]
[1771177356471,10.3432,87.061,86.992,12.59667871]
[1771177357475,191.7,87.079,86.992,12.59667871]
[1771177357476,10.3446,87.05,86.992,12.59667871]
[1771177357677,9.03856375,87.07,86.992,12.59667871]
[1771177358181,10.3459,87.039,86.992,12.59667871]
[1771177358979,10.3459,87.039,86.975,12.62005133]
[1771177359472,10.3462,87.037,86.975,12.62005133]
[1771177360476,10.3474,87.026,86.975,12.62005133]
[1771177360878,106.98,87.037,86.957,12.65473076]
[1771177361176,9.03856375,87.07,86.971,12.65473076]
[1771177361378,126.34,87.069,86.971,12.65473076]
[1771177361583,277.1223,87.069,86.993,12.65473077]
[1771177361778,266.78,87.069,86.993,12.65473077]
[1771177361981,9.03856375,87.09,86.993,12.65473077]
[1771177362173,10.3428,87.065,86.995,12.65473077]
[1771177362884,10.3414,87.077,87.011,12.66632449]
[1771177363773,10.3414,87.077,87.012,12.66625585]
[1771177363975,9.03856375,87.12,87.031,12.66625585]
[1771177364173,9.03856375,87.14,87.031,12.66625585]
[1771177364376,230.48,87.138,87.031,12.66625585]
[1771177364576,10.3382,87.104,87.036,12.65726047]
[1771177365683,10.3394,87.094,87.036,12.65726047]
[1771177367677,9.03856375,87.1,87.016,12.76791249]
[1771177368275,10.3419,87.073,87.016,12.76791249]
[1771177368481,9.03856375,87.1,87.017,10.3484]
[1771177368785,9.03856375,87.1,87.018,12.73143578]
[1771177369081,10.3417,87.074,87.018,12.73143578]
[1771177369885,10.3405,87.084,87.018,12.73143578]
[1771177371085,10.3425,87.068,87.001,12.73340028]
[1771177371383,9.03856375,87.08,87.001,12.73340028]
[1771177371784,10.3436,87.058,87.001,12.73340028]
[1771177372484,34.34,87.095,87.001,12.73340028]
[1771177372485,10.3448,87.048,87.001,12.73340028]
[1771177376588,10.3448,87.048,86.97,9.03856375]
[1771177376589,10.346,87.038,86.984,12.74346542]
[1771177377484,9.03856375,87.06,86.984,12.74346542]
[1771177377793,182.42,87.059,86.984,12.74346542]
[1771177378490,9.03856375,87.06,86.984,12.74346542]
[1771177378686,284.58,87.059,86.984,12.74346542]
[1771177379589,9.03856375,87.06,86.985,10.3522]
[1771177379794,160.7321,87.15,86.98,9.03856375]
[1771177379795,91.44,87.077,86.986,12.74179793]
[1771177380189,10.3433,87.061,87.0,9.03856375]
[1771177380586,10.3433,87.061,87.001,12.73530952]
[1771177380790,9.03856375,87.1,87.016,12.73530952]
[1771177381186,18.95357289,87.1,87.016,12.73530952]
[1771177381491,9.03856375,87.08,86.988,12.73530952]
[1771177381991,10.3418,87.073,87.007,12.73530952]
[1771177382786,10.3418,87.073,87.012,12.72883302]
[1771177385001,10.3406,87.083,87.014,12.72164899]
[1771177385196,9.96315118,87.082,87.014,12.72164899]
[1771177385497,9.96315118,87.093,87.021,12.72164899]
[1771177385701,9.96315118,87.092,87.021,12.72164899]
[1771177385894,9.96315118,87.091,87.021,12.72164899]
[1771177386091,9.96315118,87.09,87.021,12.72164899]
[1771177386291,9.96315118,87.089,87.021,12.72164899]
[1771177386489,9.96315118,87.088,87.021,12.72164899]
[1771177386693,9.96315118,87.087,87.022,10.3478]
[1771177386899,9.96315118,87.086,87.023,12.72142833]
[1771177387101,9.96315118,87.085,87.023,12.72142833]
[1771177387302,9.96315118,87.084,87.036,12.72142833]
[1771177387496,9.96315118,87.083,87.036,12.72142833]
[1771177387696,9.96315118,87.082,87.036,12.72142833]
[1771177387896,9.96315118,87.081,87.036,12.72142833]
[1771177388100,9.96315118,87.08,87.036,12.72142833]
[1771177388301,9.96315118,87.079,87.038,12.72142833]
[1771177388495,10.339,87.097,87.038,12.72142833]
[1771177388496,9.96315118,87.078,87.038,12.72142833]
[1771177388695,9.96315118,87.077,87.038,12.72142833]
[1771177388900,9.96315118,87.076,87.038,12.72142833]
[1771177389098,9.96315118,87.075,87.038,12.72142833]
[1771177389301,9.96315118,87.074,87.038,12.72142833]
[1771177389499,9.96315118,87.073,87.038,12.72142833]
[1771177389700,9.96315118,87.072,87.038,12.72142833]
[1771177389907,9.96315118,87.071,87.038,12.72142833]
[1771177390106,9.96315118,87.07,87.038,12.72142833]
[1771177390305,9.96315118,87.069,87.038,12.72142833]
[1771177390505,9.96315118,87.068,87.038,12.72142833]
[1771177390710,9.96315118,87.067,87.038,12.72142833]
[1771177390906,9.96315118,87.066,87.038,12.72142833]
[1771177391103,9.96315118,87.065,87.038,12.72142833]
[1771177391308,10.3401,87.087,87.038,12.72142833]
[1771177391502,10.04794898,87.086,87.038,12.72142833]
[1771177391697,10.04794898,87.085,87.038,23.06732833]
[1771177391901,10.04794898,87.084,87.039,12.68938548]
[1771177392102,10.04794898,87.083,87.039,12.68938548]
[1771177392298,10.04794898,87.082,87.039,12.68938548]
[1771177392505,10.04794898,87.081,87.039,12.68938548]
[1771177392706,10.04794898,87.08,87.039,12.68938548]
[1771177393008,10.04794898,87.079,87.039,12.68938548]
[1771177393310,10.04794898,87.078,87.039,12.68938548]
[1771177393505,10.04794898,87.077,87.041,12.69237881]
[1771177393807,10.04794898,87.076,87.041,12.69237881]
[1771177394002,10.04794898,87.075,87.041,12.69237881]
[1771177394204,10.3391,87.096,87.043,12.69237881]
[1771177395908,10.3391,87.096,87.048,10.3447]
[1771177396402,10.3401,87.088,87.043,12.69237881]
[1771177396602,8.64308609,87.116,87.028,12.66530896]
[1771177396807,8.64308609,87.115,87.028,12.66530896]
[1771177397108,10.3408,87.082,87.032,12.66530896]
[1771177398705,10.3408,87.082,87.034,10.3464]
[1771177398906,10.3397,87.091,87.035,12.65901256]
[1771177399510,9.03856375,87.1,87.035,12.65901256]
[1771177400008,10.3405,87.084,87.035,12.65901256]
[1771177401307,10.3417,87.074,87.02,12.67984017]
[1771177402804,10.3417,87.074,87.021,12.68854364]
[1771177403706,10.3417,87.074,87.024,10.3476]
[1771177404218,9.05230059,87.07,86.981,12.68854364]
[1771177404408,9.05230059,87.07,86.99,12.68854364]
[1771177404608,91.46,87.069,86.99,12.68854364]
[1771177404814,8.64308609,87.068,86.99,12.68854364]
[1771177405511,8.64308609,87.068,86.98,9.05230059]
[1771177405512,10.3446,87.05,86.993,12.72289195]
[1771177406220,9.6416525,87.049,86.993,12.72289195]
[1771177406517,9.6416525,87.048,86.993,12.72289195]
[1771177406817,9.6416525,87.047,86.993,12.72289195]
[1771177407019,10.3452,87.045,86.993,12.72289195]
[1771177407221,9.6416525,87.044,86.993,12.72289195]
[1771177407418,9.6416525,87.043,86.993,12.72289195]
[1771177407611,10.3465,87.033,86.993,12.72289195]
[1771177411723,10.3478,87.023,86.966,12.77571338]
[1771177412725,10.3478,87.023,86.967,10.3544]
[1771177412925,10.3478,87.023,86.968,12.82075509]
[1771177413224,10.3487,87.015,86.968,12.82075509]
[1771177415225,9.64207655,87.035,86.968,12.82075509]
[1771177415524,9.64207655,87.034,86.978,12.85086364]
[1771177415726,9.64207655,87.033,86.978,12.85086364]
[1771177415929,10.3488,87.015,86.978,12.85086364]
[1771177418431,10.3497,87.007,86.96,12.82349852]
[1771177420329,147.12,87.037,86.96,12.82349852]
[1771177420330,10.351,86.996,86.96,12.82349852]
[1771177420727,10.351,86.996,86.903,20.7239]
[1771177420728,34.34,87.026,86.91,9.05230059]
[1771177420930,9.64207655,87.025,86.93,9.05230059]
[1771177421140,9.05230059,87.03,86.95,9.05230059]
[1771177421435,218.06207655,87.033,86.95,9.05230059]
[1771177421638,9.64207655,87.032,86.95,9.05230059]
[1771177422737,10.349,87.013,86.951,6.51251719]
[1771177423634,10.349,87.013,86.955,6.5126439]